bitfinex-derivatives/quotes_SOLF0:USTF0_20251126
["timestamp","ask_amount","ask_price","bid_price","bid_amount"]
[1764168915039,3.04,136.24,136.13,3.08]
[1764168916147,0.05653509,136.2,136.17,0.04841895]
[1764168916346,0.05653509,136.2,136.17,3.12841895]
[1764168916547,0.05653509,136.2,136.17,0.04841895]
[1764168918147,3.09653509,136.2,136.17,0.04841895]
[1764168918342,3.09653509,136.2,136.09,27.52]
[1764168918556,105.8708,136.2,136.09,30.6]
[1764168918749,105.8708,136.2,136.04,102.9448]
[1764168918750,3.04,136.2,136.1,3.08]
[1764168918944,102.8375,136.19,136.1,3.08]
[1764168919147,105.8939,136.17,136.06,27.52]
[1764168919348,0.05385511,136.13,136.1,3.12730195]
[1764168919548,0.05385511,136.13,136.11,3.08]
[1764168919953,105.937,136.11,136.01,3.08]
[1764168920154,3.04,136.11,136.01,3.08]
[1764168920457,3.04,136.11,135.97,3.08]
[1764168920458,3.04,136.08,135.97,3.08]
[1764168921046,0.04726751,136.04,135.97,3.08]
[1764168922248,0.04726751,136.04,135.99,3.08]
[1764168922759,0.04726751,136.04,136.03,3.08]
[1764168923154,7.20361521,136.16,136.06,106.0126]
[1764168923356,102.8161,136.22,136.06,106.0126]
[1764168923357,3.04,136.3,136.19,102.8309]
[1764168923547,3.04,136.36,136.27,102.7747]
[1764168923752,7.20361521,136.48,136.38,3.08]
[1764168923954,7.20361521,136.48,136.37,6.6017]
[1764168923955,3.04,136.47,136.36,3.08]
[1764168924164,3.04,136.53,136.41,3.08]
[1764168924356,3.04,136.6,136.5,102.5989]
[1764168924562,3.04,136.6,136.47,3.08]
[1764168924857,3.04,136.6,136.48,102.6107]
[1764168925058,102.4859,136.66,136.45,27.68]
[1764168925059,102.5676,136.55,136.45,27.68]
[1764168925256,102.6153,136.49,136.36,102.7042]
[1764168925552,102.6449,136.45,136.35,3.08]
[1764168925757,102.6449,136.45,136.31,27.72]
[1764168925758,3.04,136.44,136.33,105.8071]
[1764168925953,102.6361,136.46,136.33,105.8071]
[1764168925954,102.6319,136.47,136.33,105.8071]
[1764168926156,0.04764404,136.41,136.39,0.05007248]
[1764168926355,0.04944814,136.41,136.39,0.05007248]
[1764168926951,102.5828,136.53,136.39,105.81137248]
[1764168927154,22.22731547,136.58,136.46,102.6284]
[1764168927349,3.04,136.58,136.46,105.7084]
[1764168927548,3.04,136.58,136.45,27.72]
[1764168927863,102.5372,136.59,136.45,27.72]
[1764168927864,3.04,136.54,136.45,27.72]
[1764168928162,3.09031191,136.51,136.48,0.05369671]
[1764168928368,0.05031191,136.51,136.48,0.05369671]
[1764168928868,0.05031191,136.51,136.37,102.6966]
[1764168928869,107.1058,136.5,136.37,102.6966]
[1764168929048,3.04,136.55,136.44,102.6423]
[1764168929249,3.04,136.55,136.44,3.08]
[1764168929450,105.6098,136.55,136.44,3.08]
[1764168929655,105.6098,136.55,136.42,27.74]
[1764168929855,307.5468,136.62,136.35,102.7145]
[1764168929856,3.04,136.49,136.35,102.7145]
[1764168930068,19.18731547,136.52,136.39,105.7612]
[1764168930269,102.6202,136.48,136.34,133.5581]
[1764168930457,3.04,136.5,136.37,102.6965]
[1764168930658,3.04,136.5,136.39,105.7603]
[1764168930856,0.04656909,136.46,136.42,3.08]
[1764168931058,0.05182857,136.45,136.37,3.08]
[1764168931364,0.05416804,136.42,136.38,3.08]
[1764168931563,0.05087325,136.41,136.38,3.08]
[1764168931767,0.05607513,136.41,136.38,3.08]
[1764168931962,3.04,136.58,136.48,102.6129]
[1764168932149,102.4765,136.67,136.48,102.6129]
[1764168932150,3.04,136.67,136.54,3.08]
[1764168932354,3.04,136.67,136.56,105.6331]
[1764168932550,102.4258,136.74,136.56,105.6331]
[1764168932551,105.4801,136.72,136.57,3.08]
[1764168932853,102.4646,136.69,136.57,3.08]
[1764168933159,102.5084,136.63,136.52,3.08]
[1764168933558,3.04,136.64,136.53,102.5766]
[1764168933866,3.04,136.64,136.52,105.6642]
[1764168934163,0.0514768,136.59,136.52,3.08]
[1764168934862,0.0514768,136.59,136.5,27.82]
[1764168935169,0.05436142,136.56,136.5,130.4193]
[1764168935369,0.05436142,136.56,136.5,133.4993]
[1764168935963,0.05436142,136.56,136.52,105.6614]
[1764168936262,3.04,136.64,136.53,105.6555]
[1764168936566,102.4772,136.67,136.54,105.6487]
[1764168936962,102.4772,136.67,136.54,3.08]
[1764168937160,0.05503843,136.62,136.59,0.04778065]
[1764168937475,3.04,136.87,136.76,102.4063]
[1764168937659,3.04,136.92,136.78,3.08]
[1764168937859,3.04,136.92,136.77,102.3953]
[1764168938059,3.04,136.92,136.8,102.3735]
[1764168938362,0.04841551,136.87,136.85,0.04696997]
[1764168938557,105.3012,136.96,136.83,3.08]
[1764168938757,102.2752,136.94,136.83,3.08]
[1764168938957,3.04,136.89,136.62,451.88524063]
[1764168939162,3.04,136.89,136.73,105.5056]
[1764168939163,3.04,136.86,136.73,105.5056]
[1764168939365,19.18731547,136.9,136.75,112.075]
[1764168939558,102.3053,136.9,136.76,3.08]
[1764168939754,102.3148,136.89,136.76,3.08]
[1764168939961,0.05008698,136.84,136.81,0.04779754]
[1764168940268,3.09008698,136.84,136.81,0.04779754]
[1764168940463,0.05008698,136.84,136.81,0.04779754]
[1764168940867,3.09008698,136.84,136.81,0.04779754]
[1764168941367,102.3588,136.83,136.72,27.96]
[1764168941560,105.3908,136.84,136.72,27.96]
[1764168941863,102.2305,137.0,136.84,3.11]
[1764168942069,3.11,137.0,136.87,3.11]
[1764168942259,102.2083,137.03,136.87,3.11]
[1764168942454,0.05449778,136.95,136.89,3.11]
[1764168942658,0.05449778,136.95,136.84,19.18731547]
[1764168942659,0.05449778,136.95,136.84,31.09]
[1764168942977,0.05220977,136.91,136.84,31.09]
[1764168943264,0.05220977,136.91,136.78,102.3877]
[1764168943265,0.05220977,136.91,136.79,3.11]
[1764168943468,0.04945486,136.86,136.79,3.11]
[1764168944268,0.04945486,136.86,136.74,105.5287]
[1764168944461,0.04921185,136.81,136.75,3.11]
[1764168945368,102.2953,136.91,136.77,3.11]
[1764168945568,102.328,136.87,136.77,3.11]
[1764168945871,102.3426,136.85,136.77,3.11]
[1764168946275,102.3359,136.86,136.77,3.11]
[1764168946476,102.3731,136.81,136.72,3.11]
[1764168946664,0.04984573,136.78,136.75,0.05288023]
[1764168951673,3.15984573,136.78,136.75,0.05288023]
[1764168951874,0.04984573,136.78,136.75,0.05288023]
[1764168952072,0.04984573,136.78,136.75,3.16288023]
[1764168952274,6.5789,136.86,136.75,3.16288023]
[1764168952474,108.9127,136.86,136.75,3.11]
[1764168953277,0.05168455,136.82,136.79,0.04864612]
[1764168953768,102.2165,137.02,136.89,3.11]
[1764168953968,102.2165,137.02,136.88,102.3105]
[1764168953969,3.11,137.02,136.91,102.2944]
[1764168954170,105.2593,137.11,136.96,3.11]
[1764168954380,102.2016,137.04,136.9,3.11]
[1764168954683,0.04886153,136.98,136.96,0.05398447]
[1764168954877,102.2428,136.98,136.86,3.11]
[1764168955487,3.11,136.99,136.88,3.11]
[1764168955979,3.11,136.99,136.92,0.05435775]
[1764168955980,0.05590039,136.95,136.92,0.05435775]
[1764168957983,6.5746,136.94,136.92,0.05435775]
[1764168958279,3.16590039,136.95,136.92,0.05435775]
[1764168958480,9.74020039,136.95,136.92,0.05435775]
[1764168958683,3.11,136.94,136.83,31.01]
[1764168958977,3.11,136.94,136.83,3.11]
[1764168959179,3.11,137.07,136.95,3.11]
[1764168959375,3.11,137.07,136.96,102.253]
[1764168959676,3.11,137.17,137.02,3.11]
[1764168959878,105.2339,137.14,137.02,3.11]
[1764168960183,105.2339,137.14,136.91,102.2912]
[1764168960184,102.2149,137.02,136.92,3.11]
[1764168960386,105.3235,137.02,136.88,102.314]
[1764168960573,3.11,136.99,136.87,3.11]
[1764168960781,0.05333599,136.94,136.92,3.16597281]
[1764168960978,0.05582975,136.94,136.92,0.04877096]
[1764168962176,112.01522975,136.94,136.92,0.04877096]
[1764168962484,112.01472975,136.94,136.82,133.3907]
[1764168962685,111.9589,136.94,136.82,133.3907]
[1764168962883,111.9589,136.94,136.82,105.4707]
[1764168963274,102.2509,136.97,136.88,3.11]
[1764168963578,102.2509,136.97,136.84,102.3463]
[1764168963782,3.11,137.06,136.89,102.3081]
[1764168964084,3.11,137.06,136.95,102.2592]
[1764168964269,0.05351336,137.02,137.0,3.11]
[1764168964468,3.11,137.17,137.01,3.11]
[1764168964668,102.1611,137.09,136.96,3.11]
[1764168964874,6.5683,137.08,136.96,9.6836]
[1764168965072,121.32701547,137.12,136.97,3.11]
[1764168965285,102.1458,137.11,136.98,3.11]
[1764168965481,0.04967304,137.06,137.03,0.05503302]
[1764168967489,0.04967304,137.06,136.96,105.2756]
[1764168967678,105.0183,137.11,136.98,105.2619]
[1764168967992,102.1757,137.07,136.93,105.2969]
[1764168968185,105.0385,137.08,136.88,3.02]
[1764168968186,102.2223,137.01,136.88,3.02]
[1764168968378,0.04989558,136.96,136.93,0.05080533]
[1764168968574,2.87,137.02,136.93,3.0719736]
[1764168968873,0.04615245,136.99,136.96,0.04626296]
[1764168969484,2.87,137.07,136.97,105.2675]
[1764168969685,9.4377,137.09,136.97,6.5731]
[1764168969884,2.87,137.09,137.0,102.2266]
[1764168970184,102.1382,137.12,136.99,9.5917]
[1764168970489,2.92586217,137.07,137.04,0.05015162]
[1764168970677,105.0543,137.06,136.94,37.4545]
[1764168971379,102.2316,137.0,136.89,3.15]
[1764168971572,0.05009683,136.96,136.93,0.04828998]
[1764168971774,0.05509792,136.96,136.93,0.04954904]
[1764168971986,0.05509792,136.96,136.93,3.19954904]
[1764168972378,0.05509792,136.96,136.93,0.04954904]
[1764168973681,0.05509792,136.96,136.93,9.77414904]
[1764168974082,0.05509792,136.96,136.93,0.04954904]
[1764168974477,0.05509792,136.96,136.93,105.47814904]
[1764168974676,2.91,137.08,136.96,102.2561]
[1764168974881,2.91,137.08,136.97,3.15]
[1764168975088,2.91,137.08,136.98,102.2407]
[1764168975492,102.1756,137.07,136.97,3.15]
[1764168975683,0.04822299,137.03,137.01,0.0494036]
[1764168975988,0.04822299,137.03,136.88,6.5774]
[1764168975989,105.1458,136.99,136.88,6.5774]
[1764168976188,2.91,136.97,136.87,102.3247]
[1764168976377,2.91,136.97,136.86,3.15]
[1764168976776,105.163,136.97,136.86,3.15]
[1764168976984,0.05561813,136.93,136.9,0.04804799]
[1764168977887,102.3183,136.88,136.75,3.15]
[1764168978085,105.2283,136.88,136.75,3.15]
[1764168978286,6.5788,136.86,136.76,6.5831]
[1764168978488,102.3349,136.86,136.75,3.15]
[1764168978888,0.04669756,136.82,136.79,0.04793744]
[1764168979193,2.95669756,136.82,136.79,0.04793744]
[1764168979779,0.04669756,136.82,136.79,0.04793744]
[1764168982088,105.1988,136.92,136.79,105.58243744]
[1764168982289,2.91,136.9,136.77,102.3993]
[1764168982491,2.91,136.9,136.78,102.39]
[1764168982691,6.5773,136.89,136.78,102.39]
[1764168982892,2.91,136.9,136.79,6.5814]
[1764168983089,9.4869,136.9,136.83,0.05507799]
[1764168983392,0.05031861,136.86,136.83,0.05507799]
[1764168984691,2.96031861,136.86,136.83,0.05507799]
[1764168984892,0.05031861,136.86,136.83,0.05507799]
[1764168985503,2.96031861,136.86,136.83,0.05507799]
[1764168985698,2.91,136.85,136.76,27.72]
[1764168986794,2.91,136.85,136.79,0.04684694]
[1764168986795,0.05039603,136.82,136.79,0.04684694]
[1764168989999,2.96039603,136.82,136.79,0.04684694]
[1764168990597,9.54099603,136.82,136.79,0.04684694]
[1764168991003,2.91,136.81,136.79,0.04684694]
[1764168991505,2.91,136.81,136.65,465.13651449]
[1764168991506,2.91,136.8,136.67,3.15]
[1764168991700,2.91,136.8,136.68,3.15]
[1764168992000,6.582,136.79,136.7,6.586]
[1764168992204,6.582,136.79,136.68,3.15]
[1764168992405,2.91,136.8,136.68,3.15]
[1764168992406,0.0522091,136.75,136.68,3.15]
[1764168993005,0.0522091,136.75,136.72,3.15]
[1764168993410,0.0522091,136.75,136.69,102.4566]
[1764168993808,0.0522091,136.75,136.71,6.5855]
[1764168994308,0.0522091,136.75,136.69,6.5863]
[1764168994714,0.0522091,136.75,136.68,133.1922]
[1764168995010,0.0522091,136.75,136.68,133.1941]
[1764168995510,0.0522091,136.75,136.63,102.501]
[1764168995511,2.9622091,136.75,136.63,102.501]
[1764168995709,0.05142025,136.7,136.63,105.651]
[1764168996009,0.05142025,136.7,136.64,6.5887]
[1764168996212,0.05142025,136.7,136.63,105.6513]
[1764168996615,0.05142025,136.7,136.66,6.5879]
[1764168996912,0.05142025,136.7,136.63,105.6508]
[1764168997205,0.05142025,136.7,136.66,6.5879]
[1764168997412,0.05142025,136.7,136.67,3.15]
[1764168997713,2.91,136.75,136.67,3.15]
[1764168998006,30.43,136.79,136.67,105.6215]
[1764168998210,102.394,136.78,136.67,30.67]
[1764168998408,2.91,136.77,136.67,3.15]
[1764168998815,0.04642895,136.73,136.71,0.0512248]
[1764169001211,0.04642895,136.73,136.71,3.0512248]
[1764169001512,3.07,136.84,136.73,3.0]
[1764169001817,3.07,136.82,136.73,6.5844]
[1764169002010,3.07,136.81,136.69,30.46]
[1764169002210,6.5827,136.78,136.7,6.586]
[1764169002509,0.04723538,136.75,136.73,0.05404872]
[1764169002710,0.05079096,136.75,136.73,0.05404872]
[1764169004712,0.05079096,136.75,136.73,3.05404872]
[1764169005015,0.05079096,136.75,136.73,0.05404872]
[1764169007513,0.05079096,136.75,136.73,3.05404872]
[1764169007702,0.05079096,136.75,136.73,0.05404872]
[1764169008615,3.12079096,136.75,136.73,0.05404872]
[1764169009015,3.07,136.74,136.64,3.0]
[1764169009816,6.5853,136.72,136.66,6.5879]
[1764169010118,0.05410309,136.7,136.68,0.04380048]
[1764169011915,3.12410309,136.7,136.68,0.04380048]
[1764169012219,0.05410309,136.7,136.68,0.04380048]
[1764169015825,0.05410309,136.7,136.68,3.04380048]
[1764169016025,0.05410309,136.7,136.68,0.04380048]
[1764169016222,3.12410309,136.7,136.68,0.04380048]
[1764169016615,9.71030309,136.7,136.68,0.04380048]
[1764169016927,0.05410309,136.7,136.68,0.04380048]
[1764169018022,3.07,136.81,136.69,3.0]
[1764169018221,3.07,136.78,136.69,3.0]
[1764169018425,3.07,136.76,136.65,3.0]
[1764169018924,0.04679886,136.72,136.69,0.05277263]
[1764169019719,3.11679886,136.72,136.69,0.05277263]
[1764169020120,3.07,136.7,136.69,0.05277263]
[1764169020326,3.07,136.7,136.61,3.0]
[1764169020728,3.07,136.7,136.61,9.5903]
[1764169021125,6.5867,136.69,136.61,3.0]
[1764169021328,0.04736393,136.66,136.64,0.04513094]
[1764169021630,3.11736393,136.66,136.64,0.04513094]
[1764169021829,3.11736393,136.66,136.57,9.5922]
[1764169022031,3.07,136.7,136.6,105.5261]
[1764169022428,3.07,136.7,136.61,3.0]
[1764169022827,111.38284036,136.75,136.59,102.5306]
[1764169022828,6.70596945,136.76,136.67,3.0]
[1764169023126,3.07,136.79,136.69,3.0]
[1764169023326,3.07,136.76,136.65,30.22]
[1764169023718,3.07,136.72,136.61,102.5168]
[1764169023924,3.11616719,136.68,136.65,0.04781225]
[1764169024425,3.07,136.67,136.65,0.04781225]
[1764169025128,3.18,136.66,136.65,0.04781225]
[1764169025329,3.18,136.65,136.56,3.06]
[1764169026233,0.04724021,136.62,136.56,3.06]
[1764169026433,3.18,136.7,136.59,3.06]
[1764169026629,3.18,136.7,136.62,3.06]
[1764169026829,3.18,136.7,136.63,6.5893]
[1764169027029,3.18,136.7,136.62,3.06]
[1764169027228,27.2,136.71,136.63,105.5616]
[1764169027431,3.18,136.74,136.64,3.06]
[1764169027628,0.05273606,136.68,136.66,9.69514021]
[1764169027823,0.04871813,136.68,136.66,3.10724021]
[1764169028025,0.04871813,136.68,136.66,0.04724021]
[1764169030735,0.04871813,136.68,136.66,3.10724021]
[1764169030923,0.04871813,136.68,136.66,0.04724021]
[1764169031830,12.42070272,136.78,136.66,0.04724021]
[1764169031831,9.70596945,136.79,136.69,2.88]
[1764169032134,3.0,136.79,136.69,2.88]
[1764169032328,3.0,136.76,136.65,132.4839]
[1764169032534,3.0,136.71,136.61,2.88]
[1764169032736,3.05026318,136.67,136.65,0.05036023]
[1764169033034,0.05026318,136.67,136.65,0.05036023]
[1764169033932,3.0,136.75,136.66,103.9414]
[1764169034130,3.0,136.75,136.66,2.88]
[1764169034325,3.0,136.75,136.63,102.5014]
[1764169034527,3.0,136.75,136.65,102.4893]
[1764169034731,3.0,136.75,136.65,105.3693]
[1764169034925,0.05147669,136.71,136.69,0.04667028]
[1764169035722,0.05147669,136.71,136.69,2.92667028]
[1764169036123,0.05147669,136.71,136.69,0.04667028]
[1764169037023,0.05147669,136.71,136.69,2.92667028]
[1764169037224,3.0,136.79,136.7,2.88]
[1764169037739,3.0,136.79,136.7,9.4659]
[1764169038043,3.0,136.78,136.7,2.88]
[1764169038233,3.0,136.78,136.73,0.05092727]
[1764169038536,3.04642445,136.75,136.73,0.05092727]
[1764169039136,3.0,136.74,136.73,0.05092727]
[1764169040039,6.5852,136.72,136.65,9.4684]
[1764169040433,6.70596945,136.77,136.67,102.472]
[1764169040641,3.0,136.78,136.7,2.88]
[1764169041140,0.0541458,136.75,136.73,0.05378312]
[1764169041738,3.0541458,136.75,136.73,0.05378312]
[1764169041933,3.0541458,136.75,136.66,2.88]
[1764169042135,3.0,136.75,136.66,2.88]
[1764169042337,105.418,136.75,136.66,2.88]
[1764169042541,109.53774695,136.77,136.63,8.76747295]
[1764169042542,139.59774695,136.77,136.64,2.88]
[1764169042741,3.0,136.76,136.64,2.88]
[1764169042941,3.0,136.76,136.69,0.04814218]
[1764169042942,3.05588355,136.71,136.69,0.04814218]
[1764169043140,3.05022479,136.71,136.69,0.04814218]
[1764169044437,0.05022479,136.71,136.69,0.04814218]
[1764169044641,0.05022479,136.71,136.69,2.92814218]
[1764169045139,6.5825,136.78,136.7,2.88]
[1764169045346,3.0,136.8,136.71,6.5857]
[1764169045546,3.0,136.79,136.7,2.88]
[1764169045846,6.5829,136.77,136.7,2.88]
[1764169046044,105.3895,136.79,136.7,2.88]
[1764169046339,3.0,136.75,136.73,0.04617829]
[1764169046845,3.04903923,136.76,136.73,0.04617829]
[1764169047044,0.04903923,136.76,136.73,0.04617829]
[1764169047242,0.04903923,136.76,136.73,2.92617829]
[1764169048039,0.04903923,136.76,136.73,0.04617829]
[1764169048349,0.04903923,136.76,136.73,105.35277829]
[1764169048546,6.58,136.83,136.76,6.5831]
[1764169048846,3.0,136.84,136.75,2.88]
[1764169049144,3.0,136.83,136.71,11.64747295]
[1764169049448,3.0,136.8,136.71,2.88]
[1764169049642,3.0518866,136.77,136.74,0.04756809]
[1764169049844,6.5834,136.76,136.74,0.04756809]
[1764169050048,0.0518866,136.77,136.74,0.04756809]
[1764169050744,9.6348866,136.77,136.74,0.04756809]
[1764169050941,3.0,136.69,136.63,7.295e-05]
[1764169051245,0.75,136.55,136.44,20.72753031]
[1764169051443,0.75,136.55,136.45,2.88]
[1764169051646,0.75,136.51,136.4,29.94]
[1764169051849,0.75,136.51,136.41,2.88]
[1764169052049,0.04935809,136.47,136.45,0.04782174]
[1764169052243,0.75,136.55,136.45,2.92782174]
[1764169052442,212.95164695,136.6,136.47,2.88]
[1764169052945,0.75,136.59,136.48,105.4961]
[1764169053245,0.05406833,136.55,136.52,0.0530991]
[1764169053445,0.80406833,136.55,136.52,0.0530991]
[1764169056953,0.75,136.54,136.52,0.0530991]
[1764169057755,0.05406833,136.55,136.52,0.0530991]
[1764169058353,0.80406833,136.55,136.52,0.0530991]
[1764169059156,0.05406833,136.55,136.52,0.0530991]
[1764169060347,0.05406833,136.55,136.52,2.9330991]
[1764169061244,0.05406833,136.55,136.52,0.0530991]
[1764169061447,0.05406833,136.55,136.52,2.9930991]
[1764169061651,103.38046833,136.55,136.52,0.0030991]
[1764169061859,103.38046833,136.55,136.43,2.94]
[1764169061860,0.71,136.52,136.43,2.94]
[1764169062047,7.84424695,136.52,136.43,2.94]
[1764169062246,109.69644695,136.56,136.44,2.94]
[1764169062247,6.5936,136.55,136.44,2.94]
[1764169062752,0.0510934,136.51,136.48,0.04704584]
[1764169064660,0.0510934,136.51,136.48,2.98704584]
[1764169065157,0.0510934,136.51,136.48,0.04704584]
[1764169065460,0.0510934,136.51,136.48,2.98704584]
[1764169065850,0.0510934,136.51,136.48,0.04704584]
[1764169067448,0.7610934,136.51,136.48,0.04704584]
[1764169067954,0.0510934,136.51,136.48,0.04704584]
[1764169070149,0.0510934,136.51,136.48,2.98704584]
[1764169070759,0.7610934,136.51,136.48,0.04704584]
[1764169071561,0.0510934,136.51,136.48,2.98704584]
[1764169071757,0.0510934,136.51,136.48,0.04704584]
[1764169072763,0.7610934,136.51,136.48,0.04704584]
[1764169073362,0.0510934,136.51,136.48,2.98704584]
[1764169074669,0.0510934,136.51,136.48,0.04704584]
[1764169074866,0.0510934,136.51,136.48,2.98704584]
[1764169075162,0.0510934,136.51,136.48,0.04704584]
[1764169075365,0.0510934,136.51,136.48,2.98704584]
[1764169076455,0.0510934,136.51,136.48,9.58364584]
[1764169077261,0.7610934,136.51,136.38,2.94]
[1764169077465,0.66,136.38,136.29,2.94]
[1764169077766,0.66,136.32,136.21,2.94]
[1764169078068,0.66,136.27,136.14,2.94]
[1764169078267,0.66,136.27,136.16,2.94]
[1764169078472,0.66,136.32,136.24,2.94]
[1764169078669,103.4108,136.37,136.26,2.94]
[1764169078878,0.71,136.36,136.26,2.94]
[1764169079171,0.71,136.36,136.23,102.8023]
[1764169079172,0.71,136.36,136.25,27.08]
[1764169079472,0.05076005,136.32,136.29,0.05391804]
[1764169080864,0.05076005,136.32,136.29,2.99391804]
[1764169081170,0.05076005,136.32,136.29,0.05391804]
[1764169081578,0.76076005,136.32,136.29,0.05391804]
[1764169082075,0.71,136.3,136.21,2.94]
[1764169082472,7.13424695,136.32,136.21,2.94]
[1764169082661,7.84424695,136.32,136.21,9.5495]
[1764169082864,27.08,136.34,136.23,105.7449]
[1764169083085,0.71,136.37,136.27,2.94]
[1764169083974,0.71,136.37,136.28,6.6064]
[1764169084173,0.05175443,136.34,136.31,0.0521714]
[1764169084474,0.81175443,136.34,136.31,0.0521714]
[1764169085077,0.05175443,136.34,136.31,0.0521714]
[1764169085273,0.81175443,136.34,136.31,0.0521714]
[1764169085968,103.4922,136.33,136.22,3.04]
[1764169086269,0.76,136.33,136.22,3.04]
[1764169086868,0.76,136.3,136.22,3.04]
[1764169087177,0.05344101,136.27,136.25,0.05167659]
[1764169088377,0.05344101,136.27,136.25,3.09167659]
[1764169089075,0.05344101,136.27,136.25,0.05167659]
[1764169089485,0.05344101,136.27,136.25,3.09167659]
[1764169089669,6.6027,136.36,136.26,3.04]
[1764169089875,0.82,136.35,136.26,3.04]
[1764169090272,7.4234,136.35,136.26,3.04]
[1764169090470,102.8365,136.19,136.08,3.04]
[1764169090669,103.701,136.13,136.0,3.04]
[1764169090871,0.82,136.06,135.96,3.04]
[1764169091173,102.892,136.12,136.0,3.03634112]
[1764169091174,7.96424695,136.12,136.0,3.03634112]
[1764169091479,8.01424695,136.1,135.96,2.99]
[1764169091679,132.40470875,136.16,135.86,2.99]
[1764169091680,7.13424695,135.99,135.86,2.99]
[1764169091876,7.13424695,136.01,135.86,2.99]
[1764169092076,0.88,136.09,135.95,2.99]
[1764169092376,8.01424695,136.14,136.01,106.011159]
[1764169092573,0.94,136.18,136.05,2.99]
[1764169092777,0.94,136.18,136.06,2.99]
[1764169092977,0.94,136.18,136.08,2.99]
[1764169093487,0.04851056,136.14,136.12,0.05052556]
[1764169094179,0.98851056,136.14,136.12,0.05052556]
[1764169094488,0.94,136.13,136.03,2.99]
[1764169094678,0.94,136.13,135.99,2.99]
[1764169095079,0.89,136.1,135.99,2.99]
[1764169095278,0.0474902,136.06,136.03,0.05338798]
[1764169095683,0.0474902,136.06,136.03,3.04338798]
[1764169095986,0.0474902,136.06,136.03,0.05338798]
[1764169096385,0.0474902,136.06,136.03,3.04338798]
[1764169096580,0.89,136.15,136.03,3.04338798]
[1764169096786,0.89,136.15,136.05,2.99]
[1764169097390,27.22,136.18,136.06,2.99]
[1764169097690,0.04969297,136.13,136.11,0.05190316]
[1764169097877,0.05251504,136.13,136.11,0.05190316]
[1764169098088,0.05251504,136.13,136.11,3.04190316]
[1764169098283,0.89,136.2,136.11,3.04190316]
[1764169098588,0.94,136.17,136.03,2.99]
[1764169099378,0.04841791,136.11,136.09,0.0492186]
[1764169099585,0.94,136.15,136.09,0.0492186]
[1764169099780,0.04696376,136.11,136.03,30.21]
[1764169099981,0.04696376,136.11,136.06,3.04058191]
[1764169100284,0.05182889,136.1,136.06,3.04058191]
[1764169100489,0.05182889,136.1,136.07,3.04202035]
[1764169100788,0.94,136.19,136.07,3.04202035]
[1764169100985,0.99,136.18,136.07,2.99]
[1764169101883,0.05097742,136.14,136.11,0.04836629]
[1764169102091,0.05097742,136.14,136.11,3.03836629]
[1764169102587,0.99,136.23,136.12,2.99]
[1764169102979,103.7969,136.23,136.12,2.99]
[1764169103180,7.5989,136.23,136.12,2.99]
[1764169103380,0.0467201,136.19,136.16,0.04925804]
[1764169104183,0.0467201,136.19,136.16,3.03925804]
[1764169106198,1.0367201,136.19,136.16,0.04925804]
[1764169107284,1.0367201,136.19,136.08,6.6157]
[1764169107479,7.6013,136.19,136.08,6.6157]
[1764169107694,0.99,136.18,136.08,2.99]
[1764169107882,0.99,136.17,136.08,2.99]
[1764169108399,0.04781151,136.14,136.11,0.0541586]
[1764169109202,1.03781151,136.14,136.11,0.0541586]
[1764169110398,0.99,136.13,136.11,0.0541586]
[1764169110590,0.99,136.13,136.01,2.99]
[1764169110796,7.6041,136.13,136.02,2.99]
[1764169111697,102.8718,136.15,136.02,2.99]
[1764169111698,0.05331148,136.09,136.06,3.04072984]
[1764169111993,0.04889497,136.09,136.06,3.04160631]